[Event "*** Titled Tuesday Blitz"]
[Site "Chess.com"]
[Date "2020.12.29"]
[Round "2"]
[White "MillyNeuf"]
[Black "chescomhuynya"]
[Result "1/2-1/2"]
[WhiteElo "2337"]
[BlackElo "2595"]
[TimeControl "180+1"]
[EndTime "10:18:43 PST"]
[Termination "Game drawn - insufficient material"]

1. e4 {[%clk 0:03:00.9]} 1... d5 {[%clk 0:02:58.7]} 2. exd5 {[%clk 0:02:59.6]}
2... Nf6 {[%clk 0:02:59.3]} 3. d4 {[%clk 0:02:58.1]} 3... Bg4 {[%clk 0:02:59.5]}
4. Be2 {[%clk 0:02:56.2]} 4... Bxe2 {[%clk 0:02:59.8]} 5. Nxe2 {[%clk
0:02:54.3]} 5... Qxd5 {[%clk 0:03:00.7]} 6. O-O {[%clk 0:02:54]} 6... Nc6 {[%clk
0:03:01.1]} 7. c3 {[%clk 0:02:53.1]} 7... e6 {[%clk 0:03:00.5]} 8. Nd2 {[%clk
0:02:50]} 8... O-O-O {[%clk 0:02:54.1]} 9. Nf3 {[%clk 0:02:49.5]} 9... h6 {[%clk
0:02:53.5]} 10. Nf4 {[%clk 0:02:45.7]} 10... Qf5 {[%clk 0:02:43.5]} 11. Qd3
{[%clk 0:02:45]} 11... g5 {[%clk 0:02:02.8]} 12. Qxf5 {[%clk 0:02:40.9]} 12...
exf5 {[%clk 0:02:03.7]} 13. Nd3 {[%clk 0:02:36.1]} 13... Bd6 {[%clk 0:02:03.7]}
14. Re1 {[%clk 0:02:28.1]} 14... Rhe8 {[%clk 0:02:03.6]} 15. Bd2 {[%clk
0:02:26.9]} 15... Ne4 {[%clk 0:02:02.5]} 16. Rad1 {[%clk 0:02:15]} 16... Nxd2
{[%clk 0:02:02.3]} 17. Nxd2 {[%clk 0:02:15.9]} 17... f6 {[%clk 0:01:54.8]} 18.
f3 {[%clk 0:02:07.6]} 18... Ne7 {[%clk 0:01:50.7]} 19. Re6 {[%clk 0:02:04.2]}
19... Nd5 {[%clk 0:01:50.6]} 20. Rde1 {[%clk 0:01:59.3]} 20... Rxe6 {[%clk
0:01:50.5]} 21. Rxe6 {[%clk 0:02:00.2]} 21... Kd7 {[%clk 0:01:51.2]} 22. Re1
{[%clk 0:01:58.2]} 22... b5 {[%clk 0:01:48.5]} 23. Nb3 {[%clk 0:01:54.6]} 23...
Re8 {[%clk 0:01:33.3]} 24. Nbc5+ {[%clk 0:01:54]} 24... Kd8 {[%clk 0:01:33.7]}
25. Nb7+ {[%clk 0:01:47.1]} 25... Kd7 {[%clk 0:01:33.8]} 26. Rxe8 {[%clk
0:00:49.9]} 26... Kxe8 {[%clk 0:01:34.7]} 27. Nxd6+ {[%clk 0:00:50]} 27... cxd6
{[%clk 0:01:35.5]} 28. Kf2 {[%clk 0:00:48.4]} 28... Kd7 {[%clk 0:01:33.2]} 29.
g3 {[%clk 0:00:46.4]} 29... a5 {[%clk 0:01:32.1]} 30. Ke2 {[%clk 0:00:44.7]}
30... a4 {[%clk 0:01:32.1]} 31. Kd2 {[%clk 0:00:42.4]} 31... h5 {[%clk
0:01:30.1]} 32. b3 {[%clk 0:00:29.9]} 32... axb3 {[%clk 0:01:29.6]} 33. axb3
{[%clk 0:00:30.8]} 33... Ke6 {[%clk 0:01:27.9]} 34. c4 {[%clk 0:00:30.1]} 34...
bxc4 {[%clk 0:01:28.2]} 35. bxc4 {[%clk 0:00:31]} 35... Nb6 {[%clk 0:01:28.9]}
36. Kc3 {[%clk 0:00:30.3]} 36... Kd7 {[%clk 0:01:01.1]} 37. d5 {[%clk
0:00:26.2]} 37... Ke7 {[%clk 0:00:53.6]} 38. Kd4 {[%clk 0:00:25.9]} 38... Kd7
{[%clk 0:00:51.5]} 39. c5 {[%clk 0:00:25.6]} 39... dxc5+ {[%clk 0:00:51.6]} 40.
Nxc5+ {[%clk 0:00:23.9]} 40... Kd6 {[%clk 0:00:50.3]} 41. Nb7+ {[%clk
0:00:21.1]} 41... Kc7 {[%clk 0:00:50.6]} 42. Nc5 {[%clk 0:00:18.4]} 42... Kd6
{[%clk 0:00:50.9]} 43. Nb7+ {[%clk 0:00:18.4]} 43... Kc7 {[%clk 0:00:51.4]} 44.
Nc5 {[%clk 0:00:17.9]} 44... Nc8 {[%clk 0:00:49.1]} 45. Ne6+ {[%clk 0:00:15.7]}
45... Kd6 {[%clk 0:00:49.6]} 46. Ng7 {[%clk 0:00:15.5]} 46... Ne7 {[%clk
0:00:49.8]} 47. Nxh5 {[%clk 0:00:14.8]} 47... Nxd5 {[%clk 0:00:50.3]} 48. g4
{[%clk 0:00:11.1]} 48... fxg4 {[%clk 0:00:49.9]} 49. fxg4 {[%clk 0:00:12]} 49...
Ke6 {[%clk 0:00:47.6]} 50. Ke4 {[%clk 0:00:12.1]} 50... Ne7 {[%clk 0:00:46.3]}
51. Ng3 {[%clk 0:00:11.8]} 51... Ng6 {[%clk 0:00:45.8]} 52. Kf3 {[%clk 0:00:11]}
52... Ne5+ {[%clk 0:00:46]} 53. Kg2 {[%clk 0:00:09.5]} 53... Nxg4 {[%clk
0:00:46.9]} 54. h3 {[%clk 0:00:09.7]} 54... Ne5 {[%clk 0:00:46.6]} 55. Ne2
{[%clk 0:00:07.7]} 55... f5 {[%clk 0:00:45.2]} 56. Kg3 {[%clk 0:00:07.4]} 56...
Kd5 {[%clk 0:00:42.8]} 57. h4 {[%clk 0:00:07.6]} 57... g4 {[%clk 0:00:40.1]} 58.
Kf4 {[%clk 0:00:07.8]} 58... Ke6 {[%clk 0:00:37.7]} 59. Nd4+ {[%clk 0:00:07.6]}
59... Kf6 {[%clk 0:00:38.3]} 60. Nxf5 {[%clk 0:00:07.6]} 60... Ng6+ {[%clk
0:00:38.1]} 61. Kxg4 {[%clk 0:00:07.2]} 61... Nxh4 {[%clk 0:00:39]} 1/2-1/2

[Event "*** Titled Tuesday Blitz"]
[Site "Chess.com"]
[Date "2020.12.29"]
[Round "2"]
[White "chessuriel"]
[Black "Nadeev_Sergey"]
[Result "0-1"]
[WhiteElo "2226"]
[BlackElo "2442"]
[TimeControl "180+1"]
[EndTime "10:18:44 PST"]
[Termination "Nadeev_Sergey won by resignation"]

1. e4 {[%clk 0:03:00.9]} 1... e5 {[%clk 0:02:59.5]} 2. Nf3 {[%clk 0:03:00.6]}
2... Nc6 {[%clk 0:02:57.2]} 3. Bb5 {[%clk 0:03:00.9]} 3... a6 {[%clk 0:02:57.2]}
4. Ba4 {[%clk 0:03:00.3]} 4... Nf6 {[%clk 0:02:57.7]} 5. O-O {[%clk 0:02:58.5]}
5... Be7 {[%clk 0:02:58.3]} 6. Re1 {[%clk 0:02:57.8]} 6... b5 {[%clk 0:02:58.6]}
7. Bb3 {[%clk 0:02:57.5]} 7... O-O {[%clk 0:02:59.3]} 8. c3 {[%clk 0:02:51.1]}
8... d5 {[%clk 0:02:59]} 9. exd5 {[%clk 0:02:48]} 9... Nxd5 {[%clk 0:02:59.9]}
10. d4 {[%clk 0:02:47.8]} 10... exd4 {[%clk 0:02:56.8]} 11. cxd4 {[%clk
0:02:47.4]} 11... Bf6 {[%clk 0:02:53.5]} 12. Nc3 {[%clk 0:02:45.8]} 12... Be6
{[%clk 0:02:51]} 13. Ne4 {[%clk 0:02:41.7]} 13... Be7 {[%clk 0:02:44.9]} 14.
Neg5 {[%clk 0:02:18.5]} 14... Bf5 {[%clk 0:02:43.9]} 15. Ne5 {[%clk 0:02:03.1]}
15... Ncb4 {[%clk 0:02:21.8]} 16. Qf3 {[%clk 0:01:21.5]} 16... Bg6 {[%clk
0:02:10.3]} 17. Nc6 {[%clk 0:00:31.7]} 17... Nxc6 {[%clk 0:02:07]} 18. Qxd5
{[%clk 0:00:26.4]} 18... Nxd4 {[%clk 0:01:48.4]} 19. Nf3 {[%clk 0:00:16.8]}
19... Nxb3 {[%clk 0:01:42.2]} 20. Qxb3 {[%clk 0:00:15.7]} 20... c5 {[%clk
0:01:33.3]} 21. Ne5 {[%clk 0:00:14.5]} 21... Bf6 {[%clk 0:01:33.8]} 22. Qf3
{[%clk 0:00:12.6]} 22... Qc7 {[%clk 0:01:16.4]} 23. Bf4 {[%clk 0:00:11.6]} 23...
Bxe5 {[%clk 0:01:13.6]} 24. Bxe5 {[%clk 0:00:11.7]} 24... Qb6 {[%clk 0:01:07.5]}
25. Qc3 {[%clk 0:00:11.7]} 25... f6 {[%clk 0:01:05.7]} 26. Bg3 {[%clk 0:00:11]}
26... Rfe8 {[%clk 0:01:00.8]} 27. f3 {[%clk 0:00:11]} 27... b4 {[%clk 0:00:53]}
28. Qc4+ {[%clk 0:00:10.5]} 28... Bf7 {[%clk 0:00:53]} 29. Qh4 {[%clk
0:00:10.6]} 29... c4+ {[%clk 0:00:49.9]} 30. Bf2 {[%clk 0:00:10.9]} 30... Qb5
{[%clk 0:00:45.2]} 31. Qg3 {[%clk 0:00:10.5]} 31... Rac8 {[%clk 0:00:42.1]} 32.
Bd4 {[%clk 0:00:10.4]} 32... Bg6 {[%clk 0:00:39.3]} 33. h4 {[%clk 0:00:09.6]}
33... Qd5 {[%clk 0:00:34.8]} 34. Qf4 {[%clk 0:00:09.3]} 34... Rcd8 {[%clk
0:00:32]} 35. Red1 {[%clk 0:00:09.2]} 35... Bd3 {[%clk 0:00:23.1]} 36. Bf2
{[%clk 0:00:08.2]} 36... Qe5 {[%clk 0:00:21.5]} 37. Qg4 {[%clk 0:00:07.7]} 37...
f5 {[%clk 0:00:19.9]} 38. Qg5 {[%clk 0:00:07.3]} 38... f4 {[%clk 0:00:19.1]} 39.
Qg4 {[%clk 0:00:07.4]} 39... Rd6 {[%clk 0:00:17.8]} 40. Re1 {[%clk 0:00:06.7]}
40... Be2 {[%clk 0:00:14]} 41. Qh3 {[%clk 0:00:05.3]} 41... Rde6 {[%clk
0:00:13.9]} 42. Qg4 {[%clk 0:00:05.1]} 42... Qf6 {[%clk 0:00:13.8]} 43. h5
{[%clk 0:00:04.4]} 43... Qxb2 {[%clk 0:00:13.4]} 44. Rac1 {[%clk 0:00:03.3]}
44... Qf6 {[%clk 0:00:12.3]} 45. Qh3 {[%clk 0:00:03.1]} 45... c3 {[%clk
0:00:12.5]} 46. Qg4 {[%clk 0:00:04]} 46... a5 {[%clk 0:00:12.6]} 47. Qh3 {[%clk
0:00:03.6]} 47... a4 {[%clk 0:00:13.1]} 48. Qg4 {[%clk 0:00:04.5]} 48... b3
{[%clk 0:00:13.6]} 49. Bh4 {[%clk 0:00:05.4]} 49... Qe5 {[%clk 0:00:13.3]} 50.
h6 {[%clk 0:00:05.3]} 50... Rg6 {[%clk 0:00:12.6]} 51. Bg5 {[%clk 0:00:05.8]}
51... Rxg5 {[%clk 0:00:12.5]} 52. Qxf4 {[%clk 0:00:05.4]} 52... Qxf4 {[%clk
0:00:12.7]} 0-1

[Event "*** Titled Tuesday Blitz"]
[Site "Chess.com"]
[Date "2020.12.29"]
[Round "2"]
[White "zmeeed67"]
[Black "kinga2008"]
[Result "1-0"]
[WhiteElo "2410"]
[BlackElo "2166"]
[TimeControl "180+1"]
[EndTime "10:18:44 PST"]
[Termination "zmeeed67 won by resignation"]

1. e4 {[%clk 0:03:00.9]} 1... c5 {[%clk 0:02:57]} 2. g3 {[%clk 0:03:00.4]} 2...
Nc6 {[%clk 0:02:56]} 3. Bg2 {[%clk 0:03:00.3]} 3... e5 {[%clk 0:02:55.2]} 4. Ne2
{[%clk 0:03:00.3]} 4... Nf6 {[%clk 0:02:49.7]} 5. Nbc3 {[%clk 0:02:59.7]} 5...
a6 {[%clk 0:02:45.1]} 6. O-O {[%clk 0:02:58.9]} 6... b5 {[%clk 0:02:44]} 7. Nd5
{[%clk 0:02:51.5]} 7... Bb7 {[%clk 0:02:41.9]} 8. Nxf6+ {[%clk 0:02:45.4]} 8...
Qxf6 {[%clk 0:02:39.2]} 9. Nc3 {[%clk 0:02:45.3]} 9... Nd4 {[%clk 0:02:14]} 10.
f4 {[%clk 0:02:44.9]} 10... Bd6 {[%clk 0:01:57]} 11. d3 {[%clk 0:02:40.8]} 11...
O-O {[%clk 0:01:51.1]} 12. fxe5 {[%clk 0:02:17.9]} 12... Qxe5 {[%clk 0:01:48.5]}
13. Bf4 {[%clk 0:02:16.5]} 13... Qe6 {[%clk 0:01:37.1]} 14. Bxd6 {[%clk
0:01:50.7]} 14... Qxd6 {[%clk 0:01:33]} 15. Ne2 {[%clk 0:01:41.9]} 15... f5
{[%clk 0:01:29.3]} 16. c3 {[%clk 0:01:32.6]} 16... Nxe2+ {[%clk 0:01:21.9]} 17.
Qxe2 {[%clk 0:01:32.5]} 17... fxe4 {[%clk 0:01:06.1]} 18. dxe4 {[%clk 0:01:32]}
18... Rxf1+ {[%clk 0:01:00.3]} 19. Rxf1 {[%clk 0:01:30.6]} 19... Qe7 {[%clk
0:00:51.3]} 20. a4 {[%clk 0:01:24.7]} 20... Bc6 {[%clk 0:00:38.2]} 21. axb5
{[%clk 0:01:11.7]} 21... Bxb5 {[%clk 0:00:34.2]} 22. c4 {[%clk 0:01:10]} 22...
Bc6 {[%clk 0:00:32.7]} 23. Qd3 {[%clk 0:01:00.9]} 23... Re8 {[%clk 0:00:28.3]}
24. Re1 {[%clk 0:00:50.4]} 24... Qe5 {[%clk 0:00:15.8]} 25. b3 {[%clk 0:00:35]}
25... Qd4+ {[%clk 0:00:12.7]} 26. Qxd4 {[%clk 0:00:34.9]} 26... cxd4 {[%clk
0:00:12.5]} 27. Rd1 {[%clk 0:00:35.3]} 27... Bxe4 {[%clk 0:00:12.7]} 28. Rxd4
{[%clk 0:00:34.7]} 28... Bxg2 {[%clk 0:00:11.9]} 29. Kxg2 {[%clk 0:00:34.9]}
29... Re3 {[%clk 0:00:12.4]} 30. b4 {[%clk 0:00:32.6]} 30... Rb3 {[%clk
0:00:07.9]} 31. c5 {[%clk 0:00:32.5]} 31... Kf8 {[%clk 0:00:03.5]} 32. Rxd7
{[%clk 0:00:24.3]} 32... Ke8 {[%clk 0:00:03.4]} 33. Rxg7 {[%clk 0:00:23.3]}
33... Rxb4 {[%clk 0:00:03.6]} 34. Rxh7 {[%clk 0:00:23.2]} 34... Rc4 {[%clk
0:00:04.3]} 35. Ra7 {[%clk 0:00:22.2]} 35... Rxc5 {[%clk 0:00:03.4]} 36. Rxa6
{[%clk 0:00:21.9]} 36... Kd7 {[%clk 0:00:03.5]} 37. Rf6 {[%clk 0:00:21.2]} 37...
Ke7 {[%clk 0:00:03.4]} 38. Rf4 {[%clk 0:00:21.1]} 38... Ke6 {[%clk 0:00:03.6]}
39. h4 {[%clk 0:00:21.5]} 39... Ke5 {[%clk 0:00:02.7]} 40. Kh3 {[%clk
0:00:21.5]} 40... Rc1 {[%clk 0:00:03.2]} 41. h5 {[%clk 0:00:20]} 41... Rc8
{[%clk 0:00:03.3]} 42. Kh4 {[%clk 0:00:19.2]} 42... Rh8 {[%clk 0:00:03.9]} 43.
Rf1 {[%clk 0:00:18.8]} 43... Ke6 {[%clk 0:00:03.2]} 44. g4 {[%clk 0:00:19]}
44... Ra8 {[%clk 0:00:03]} 45. h6 {[%clk 0:00:18.3]} 45... Ra2 {[%clk 0:00:03]}
46. Kh5 {[%clk 0:00:17.2]} 46... Rh2+ {[%clk 0:00:02.8]} 47. Kg6 {[%clk
0:00:17.1]} 47... Rh4 {[%clk 0:00:02.6]} 48. g5 {[%clk 0:00:17.1]} 48... Ke5
{[%clk 0:00:01.8]} 49. h7 {[%clk 0:00:17.2]} 49... Rh2 {[%clk 0:00:02.1]} 50.
Kg7 {[%clk 0:00:16.6]} 1-0

[Event "*** Titled Tuesday Blitz"]
[Site "Chess.com"]
[Date "2020.12.29"]
[Round "2"]
[White "alexrustemov"]
[Black "Eloist"]
[Result "1-0"]
[WhiteElo "2667"]
[BlackElo "2335"]
[TimeControl "180+1"]
[EndTime "10:18:45 PST"]
[Termination "alexrustemov won on time"]

1. d4 {[%clk 0:03:00.9]} 1... e6 {[%clk 0:02:52.9]} 2. c4 {[%clk 0:02:59.1]}
2... Nf6 {[%clk 0:02:51.1]} 3. Nf3 {[%clk 0:02:58.2]} 3... b6 {[%clk 0:02:50]}
4. a3 {[%clk 0:02:57.3]} 4... Ba6 {[%clk 0:02:48]} 5. Qc2 {[%clk 0:02:56.6]}
5... Bb7 {[%clk 0:02:47.4]} 6. Nc3 {[%clk 0:02:55.9]} 6... c5 {[%clk 0:02:46.9]}
7. d5 {[%clk 0:02:54.9]} 7... exd5 {[%clk 0:02:45.5]} 8. cxd5 {[%clk 0:02:55.8]}
8... Nxd5 {[%clk 0:02:41.5]} 9. Bd2 {[%clk 0:02:30.9]} 9... Be7 {[%clk
0:02:28.6]} 10. e4 {[%clk 0:02:29.1]} 10... Nxc3 {[%clk 0:02:21.3]} 11. Bxc3
{[%clk 0:02:30]} 11... O-O {[%clk 0:02:12.8]} 12. O-O-O {[%clk 0:02:29]} 12...
Nc6 {[%clk 0:01:57.2]} 13. Bc4 {[%clk 0:02:28]} 13... Qc7 {[%clk 0:01:42.8]} 14.
Kb1 {[%clk 0:02:10.8]} 14... Rac8 {[%clk 0:01:20.5]} 15. Qd3 {[%clk 0:01:48.2]}
15... Nd4 {[%clk 0:00:51.4]} 16. Bxd4 {[%clk 0:01:36.6]} 16... cxd4 {[%clk
0:00:52.3]} 17. Bd5 {[%clk 0:01:27]} 17... Bxd5 {[%clk 0:00:46.7]} 18. exd5
{[%clk 0:01:26.9]} 18... Bf6 {[%clk 0:00:42.7]} 19. Nxd4 {[%clk 0:01:25]} 19...
Qf4 {[%clk 0:00:25.2]} 20. Rd2 {[%clk 0:01:20.8]} 20... Rfe8 {[%clk 0:00:20]}
21. g3 {[%clk 0:01:18.5]} 21... Qe5 {[%clk 0:00:19]} 22. Nb5 {[%clk 0:01:09.3]}
22... a6 {[%clk 0:00:16.8]} 23. Nc3 {[%clk 0:01:08.9]} 23... b5 {[%clk
0:00:13.2]} 24. Re2 {[%clk 0:01:08.6]} 24... Qd4 {[%clk 0:00:13]} 25. Qxd4
{[%clk 0:01:01.2]} 25... Bxd4 {[%clk 0:00:13.9]} 26. Ne4 {[%clk 0:00:31.3]}
26... f5 {[%clk 0:00:12.4]} 27. Rd1 {[%clk 0:00:26]} 27... Bb6 {[%clk
0:00:09.7]} 28. Nc3 {[%clk 0:00:24.9]} 28... Rxe2 {[%clk 0:00:08.8]} 29. Nxe2
{[%clk 0:00:25.6]} 29... Bxf2 {[%clk 0:00:08.4]} 30. Rf1 {[%clk 0:00:26.2]}
30... Bc5 {[%clk 0:00:07.2]} 31. Rxf5 {[%clk 0:00:26.9]} 31... Re8 {[%clk
0:00:06.8]} 32. Nc3 {[%clk 0:00:26.7]} 32... d6 {[%clk 0:00:06.3]} 33. Rf3
{[%clk 0:00:22.8]} 33... Re1+ {[%clk 0:00:05.8]} 34. Kc2 {[%clk 0:00:22.4]}
34... Rh1 {[%clk 0:00:06.6]} 35. h4 {[%clk 0:00:22]} 35... Rh2+ {[%clk
0:00:06.3]} 36. Kb3 {[%clk 0:00:22.3]} 36... Rd2 {[%clk 0:00:04.1]} 37. g4
{[%clk 0:00:19.7]} 37... Rd4 {[%clk 0:00:03.9]} 38. Rg3 {[%clk 0:00:17.4]} 38...
h5 {[%clk 0:00:02.6]} 39. gxh5 {[%clk 0:00:17]} 39... Rxh4 {[%clk 0:00:03.1]}
40. Rg5 {[%clk 0:00:17.4]} 40... Kh7 {[%clk 0:00:03.3]} 41. a4 {[%clk
0:00:17.1]} 41... Kh6 {[%clk 0:00:03.4]} 42. Rf5 {[%clk 0:00:16.8]} 42... bxa4+
{[%clk 0:00:02.5]} 43. Kc2 {[%clk 0:00:14.8]} 43... Rg4 {[%clk 0:00:02.6]} 44.
Rf8 {[%clk 0:00:14.3]} 44... Rg2+ {[%clk 0:00:02.4]} 45. Kd3 {[%clk 0:00:14]}
45... Kxh5 {[%clk 0:00:02.5]} 46. Nxa4 {[%clk 0:00:14.4]} 46... Rg3+ {[%clk
0:00:01]} 47. Kc2 {[%clk 0:00:11.8]} 1-0

[Event "*** Titled Tuesday Blitz"]
[Site "Chess.com"]
[Date "2020.12.29"]
[Round "2"]
[White "andriipalchuk"]
[Black "Kaslask"]
[Result "1-0"]
[WhiteElo "2473"]
[BlackElo "2289"]
[TimeControl "180+1"]
[EndTime "10:18:45 PST"]
[Termination "andriipalchuk won on time"]

1. e4 {[%clk 0:02:23.5]} 1... c5 {[%clk 0:02:57.4]} 2. Nf3 {[%clk 0:02:17.5]}
2... Nc6 {[%clk 0:02:56.4]} 3. Bb5 {[%clk 0:02:17.5]} 3... g6 {[%clk 0:02:55.3]}
4. Bxc6 {[%clk 0:02:17.5]} 4... dxc6 {[%clk 0:02:51.3]} 5. d3 {[%clk 0:02:17.9]}
5... Bg7 {[%clk 0:02:49.2]} 6. h3 {[%clk 0:02:15.1]} 6... e5 {[%clk 0:02:47.9]}
7. Nc3 {[%clk 0:02:12.2]} 7... Ne7 {[%clk 0:02:46.8]} 8. Be3 {[%clk 0:02:11.8]}
8... b6 {[%clk 0:02:45.4]} 9. Qd2 {[%clk 0:02:12.2]} 9... h6 {[%clk 0:02:44.1]}
10. O-O {[%clk 0:02:11.7]} 10... Be6 {[%clk 0:02:39.8]} 11. Nh2 {[%clk
0:02:11.1]} 11... g5 {[%clk 0:02:34.8]} 12. h4 {[%clk 0:02:09.6]} 12... f6
{[%clk 0:02:18.4]} 13. h5 {[%clk 0:01:55.8]} 13... Qd7 {[%clk 0:02:14.5]} 14. f3
{[%clk 0:01:54.1]} 14... f5 {[%clk 0:02:09.9]} 15. a3 {[%clk 0:01:51.3]} 15...
a5 {[%clk 0:02:04.5]} 16. b4 {[%clk 0:01:50.6]} 16... O-O {[%clk 0:01:57.2]} 17.
bxc5 {[%clk 0:01:50.4]} 17... b5 {[%clk 0:01:55.8]} 18. Ne2 {[%clk 0:01:36.7]}
18... Kh7 {[%clk 0:01:50.1]} 19. Rad1 {[%clk 0:01:32.2]} 19... f4 {[%clk
0:01:24.9]} 20. Bf2 {[%clk 0:01:27.3]} 20... Ng8 {[%clk 0:01:21.2]} 21. d4
{[%clk 0:01:20.7]} 21... Bc4 {[%clk 0:01:17.6]} 22. dxe5 {[%clk 0:01:00.4]}
22... Qf7 {[%clk 0:01:16.5]} 23. Nd4 {[%clk 0:00:54.3]} 23... Bxf1 {[%clk
0:01:00.8]} 24. Rxf1 {[%clk 0:00:43.4]} 24... Qc4 {[%clk 0:00:56.4]} 25. Nxc6
{[%clk 0:00:41.3]} 25... Rac8 {[%clk 0:00:50.9]} 26. Qd7 {[%clk 0:00:37.7]}
26... Qf7 {[%clk 0:00:43.9]} 27. Qxf7 {[%clk 0:00:27.1]} 27... Rxf7 {[%clk
0:00:43.1]} 28. Nxa5 {[%clk 0:00:27.8]} 28... Bxe5 {[%clk 0:00:40.8]} 29. Ng4
{[%clk 0:00:28.3]} 29... Bg7 {[%clk 0:00:40.1]} 30. c6 {[%clk 0:00:25.4]} 30...
Ra8 {[%clk 0:00:32.8]} 31. Bb6 {[%clk 0:00:19.2]} 31... Nf6 {[%clk 0:00:30.2]}
32. Nxf6+ {[%clk 0:00:18.8]} 32... Bxf6 {[%clk 0:00:29.4]} 33. Rd1 {[%clk
0:00:17.2]} 33... Rc8 {[%clk 0:00:23.6]} 34. Rd5 {[%clk 0:00:16.4]} 34... Bc3
{[%clk 0:00:18.9]} 35. Rxb5 {[%clk 0:00:15.7]} 35... Bxa5 {[%clk 0:00:17.9]} 36.
Bxa5 {[%clk 0:00:15.6]} 36... Rxc6 {[%clk 0:00:18.1]} 37. c3 {[%clk 0:00:16.2]}
37... Rd7 {[%clk 0:00:16.4]} 38. Bb4 {[%clk 0:00:15.2]} 38... Rc8 {[%clk
0:00:13.8]} 39. a4 {[%clk 0:00:14.7]} 39... g4 {[%clk 0:00:12.5]} 40. fxg4
{[%clk 0:00:14.6]} 40... Rg8 {[%clk 0:00:12]} 41. e5 {[%clk 0:00:13.8]} 41...
Rxg4 {[%clk 0:00:10.3]} 42. e6 {[%clk 0:00:08.1]} 42... Rd2 {[%clk 0:00:08.7]}
43. Rb7+ {[%clk 0:00:04.3]} 43... Kg8 {[%clk 0:00:06.5]} 44. Rb8+ {[%clk
0:00:04.7]} 44... Kg7 {[%clk 0:00:05.9]} 45. Bc5 {[%clk 0:00:01.9]} 45... Rgxg2+
{[%clk 0:00:03]} 46. Kf1 {[%clk 0:00:02.8]} 46... f3 {[%clk 0:00:02.8]} 47. Bd4+
{[%clk 0:00:03.7]} 1-0

[Event "*** Titled Tuesday Blitz"]
[Site "Chess.com"]
[Date "2020.12.29"]
[Round "2"]
[White "Logman74"]
[Black "mat_kolosowski"]
[Result "1-0"]
[WhiteElo "2358"]
[BlackElo "2694"]
[TimeControl "180+1"]
[EndTime "10:18:46 PST"]
[Termination "Logman74 won by resignation"]

1. d4 {[%clk 0:03:00.9]} 1... Nf6 {[%clk 0:02:58.9]} 2. c4 {[%clk 0:03:00.4]}
2... g6 {[%clk 0:02:58.7]} 3. Nc3 {[%clk 0:03:01]} 3... d5 {[%clk 0:02:58.5]} 4.
cxd5 {[%clk 0:03:00]} 4... Nxd5 {[%clk 0:02:59.4]} 5. e4 {[%clk 0:03:00.1]} 5...
Nxc3 {[%clk 0:02:59.9]} 6. bxc3 {[%clk 0:03:00.8]} 6... Bg7 {[%clk 0:03:00.8]}
7. Bc4 {[%clk 0:02:57.4]} 7... c5 {[%clk 0:03:00.9]} 8. Ne2 {[%clk 0:02:57.6]}
8... O-O {[%clk 0:03:01.1]} 9. Be3 {[%clk 0:02:57.8]} 9... Nc6 {[%clk
0:03:01.2]} 10. O-O {[%clk 0:02:55.1]} 10... Bg4 {[%clk 0:03:01.7]} 11. f3
{[%clk 0:02:54.4]} 11... Bd7 {[%clk 0:03:01.9]} 12. Rc1 {[%clk 0:02:53.2]} 12...
Rc8 {[%clk 0:02:59.8]} 13. e5 {[%clk 0:02:43.8]} 13... Na5 {[%clk 0:02:51.3]}
14. Bd3 {[%clk 0:02:42.8]} 14... Be6 {[%clk 0:02:51.2]} 15. Qa4 {[%clk 0:02:36]}
15... Bxe5 {[%clk 0:02:29.5]} 16. Bxg6 {[%clk 0:02:15.8]} 16... Bxh2+ {[%clk
0:02:16.9]} 17. Kxh2 {[%clk 0:02:14.5]} 17... fxg6 {[%clk 0:02:03.6]} 18. dxc5
{[%clk 0:02:13.8]} 18... Nc4 {[%clk 0:02:00.3]} 19. Bd4 {[%clk 0:02:02.3]} 19...
Bd5 {[%clk 0:01:55.3]} 20. Ng3 {[%clk 0:01:55.2]} 20... e5 {[%clk 0:01:55.2]}
21. Bf2 {[%clk 0:01:50.2]} 21... Qg5 {[%clk 0:01:25.7]} 22. Rcd1 {[%clk
0:01:46.7]} 22... Be6 {[%clk 0:01:25.6]} 23. Ne4 {[%clk 0:01:40.3]} 23... Qh6+
{[%clk 0:01:20.1]} 24. Kg1 {[%clk 0:01:39.7]} 24... Ne3 {[%clk 0:01:18.7]} 25.
Bxe3 {[%clk 0:01:24]} 25... Qxe3+ {[%clk 0:01:19.6]} 26. Rf2 {[%clk 0:01:24.1]}
26... Rcd8 {[%clk 0:01:17.1]} 27. Rd6 {[%clk 0:01:11.1]} 27... Rxd6 {[%clk
0:00:41.8]} 28. cxd6 {[%clk 0:01:10.4]} 28... Rd8 {[%clk 0:00:42]} 29. Qa5
{[%clk 0:01:05.6]} 29... Qc1+ {[%clk 0:00:34.1]} 30. Kh2 {[%clk 0:00:57.4]}
30... Qf4+ {[%clk 0:00:34.1]} 31. Kg1 {[%clk 0:00:50.9]} 31... Qc1+ {[%clk
0:00:33.5]} 32. Kh2 {[%clk 0:00:43.2]} 32... Qf4+ {[%clk 0:00:33.5]} 33. g3
{[%clk 0:00:43.4]} 33... Qh6+ {[%clk 0:00:33.5]} 34. Kg1 {[%clk 0:00:43.2]}
34... Qc1+ {[%clk 0:00:31.4]} 35. Kg2 {[%clk 0:00:43.4]} 35... Rf8 {[%clk
0:00:13]} 36. Qxe5 {[%clk 0:00:42.3]} 36... Bh3+ {[%clk 0:00:08.1]} 37. Kh2
{[%clk 0:00:26.2]} 37... h5 {[%clk 0:00:05.9]} 38. Qg5 {[%clk 0:00:22]} 38...
Qxg5 {[%clk 0:00:05.1]} 39. Nxg5 {[%clk 0:00:22.1]} 39... Bd7 {[%clk 0:00:06]}
40. Re2 {[%clk 0:00:20.9]} 40... Re8 {[%clk 0:00:06.9]} 41. Rxe8+ {[%clk
0:00:19]} 41... Bxe8 {[%clk 0:00:07.8]} 42. f4 {[%clk 0:00:19.2]} 42... Kf8
{[%clk 0:00:08.7]} 43. Kg2 {[%clk 0:00:19.5]} 43... Bc6+ {[%clk 0:00:09.6]} 44.
Kf2 {[%clk 0:00:19.7]} 44... Bd5 {[%clk 0:00:10.2]} 45. Ke3 {[%clk 0:00:20.3]}
45... Bxa2 {[%clk 0:00:10.8]} 46. Kd4 {[%clk 0:00:20.4]} 46... Bb3 {[%clk
0:00:11.5]} 47. c4 {[%clk 0:00:20.5]} 47... a5 {[%clk 0:00:12.4]} 48. c5 {[%clk
0:00:20.6]} 48... a4 {[%clk 0:00:13.3]} 49. Kc3 {[%clk 0:00:21.3]} 49... Ke8
{[%clk 0:00:13]} 50. Kb4 {[%clk 0:00:21.1]} 50... Kd7 {[%clk 0:00:13.9]} 51. Nf3
{[%clk 0:00:20.5]} 51... Bd5 {[%clk 0:00:14.1]} 52. Ne5+ {[%clk 0:00:20.6]}
52... Kd8 {[%clk 0:00:14.5]} 53. Nxg6 {[%clk 0:00:21.2]} 53... Bc6 {[%clk
0:00:15]} 54. Ne5 {[%clk 0:00:21.2]} 54... h4 {[%clk 0:00:15.6]} 55. gxh4 {[%clk
0:00:20.6]} 1-0